bitfinex-derivatives/quotes_BTCF0:USTF0_20251119
["timestamp","ask_amount","ask_price","bid_price","bid_amount"]
[1763564935957,0.3108,92264.0,92263.0,0.1062]
[1763564937556,0.04306,92255.0,92254.0,0.00016264]
[1763564937754,0.38273,92255.0,92254.0,0.00016264]
[1763564937957,0.512334,92255.0,92254.0,0.00016264]
[1763564938257,0.512334,92255.0,92251.0,0.1062]
[1763564938258,0.1515375,92252.0,92251.0,0.1062]
[1763564938764,0.00219803,92250.0,92238.0,0.1084937]
[1763564938963,0.3608,92241.0,92238.0,0.1084937]
[1763564940265,0.1084916,92240.0,92237.0,0.10616]
[1763564940462,0.3608,92241.0,92238.0,0.108494]
[1763564940775,0.00016264,92249.0,92240.0,0.04565]
[1763564941067,0.00016264,92249.0,92248.0,0.1541322]
[1763564941863,0.00016264,92249.0,92234.0,0.3608]
[1763564942058,0.1522922,92231.0,92230.0,0.00016264]
[1763564942258,0.5130922,92231.0,92230.0,0.00016264]
[1763564942467,0.3608,92231.0,92230.0,0.02312264]
[1763564942664,0.3608,92231.0,92230.0,0.04606264]
[1763564942866,0.36096264,92249.0,92248.0,0.0459]
[1763564943069,0.36096264,92249.0,92248.0,0.15206]
[1763564943466,0.36096264,92249.0,92248.0,0.10616]
[1763564943865,0.46944364,92249.0,92248.0,0.10616]
[1763564944167,0.36096264,92249.0,92230.0,0.24671616]
[1763564944368,0.5130922,92231.0,92230.0,0.00016264]
[1763564944672,0.00219803,92230.0,92219.0,0.10616]
[1763564945167,0.00219803,92230.0,92229.0,0.1544046]
[1763564945370,0.3608,92248.0,92247.0,0.1543834]
[1763564945560,0.00016264,92249.0,92248.0,0.0459]
[1763564945965,0.00016264,92249.0,92248.0,0.1084822]
[1763564946170,0.00016264,92249.0,92248.0,0.1314422]
[1763564946362,0.3608,92267.0,92266.0,0.108461]
[1763564946557,0.3608,92267.0,92250.0,0.24655352]
[1763564946765,0.3608,92267.0,92266.0,0.02296]
[1763564947770,0.02274,92264.0,92263.0,0.10616]
[1763564947967,0.04379,92264.0,92263.0,0.10616]
[1763564948274,0.00219803,92260.0,92257.0,0.00016264]
[1763564948566,0.38354,92258.0,92257.0,0.00016264]
[1763564949074,0.3608,92258.0,92257.0,0.04606264]
[1763564949468,0.00219803,92260.0,92258.0,0.1084705]
[1763564950268,0.36096264,92276.0,92269.0,0.1543575]
[1763564950575,0.3608,92286.0,92285.0,0.1543387]
[1763564950869,0.3608,92286.0,92285.0,0.2604587]
[1763564951060,0.3608,92286.0,92285.0,0.10612]
[1763564951662,0.3608,92286.0,92285.0,0.12908]
[1763564952275,0.3608,92286.0,92285.0,0.15202]
[1763564952770,0.3608,92286.0,92285.0,0.13742]
[1763564953478,0.38354,92286.0,92285.0,0.09152]
[1763564953773,0.04379,92277.0,92276.0,0.00016254]
[1763564953976,0.40459,92277.0,92276.0,0.00016254]
[1763564954376,0.3608,92277.0,92276.0,0.04606254]
[1763564954569,0.05205668,92332.0,92276.0,0.04606254]
[1763564954570,0.36096254,92295.0,92294.0,0.1084282]
[1763564954877,0.36096254,92295.0,92294.0,0.1313882]
[1763564955065,0.00016254,92295.0,92294.0,0.5151282]
[1763564955470,2.54e-06,92295.0,92294.0,0.5151282]
[1763564955666,0.39995824,92338.0,92323.0,0.108394]
[1763564955870,0.39995824,92338.0,92337.0,0.1313376]
[1763564955871,0.33007594,92338.0,92337.0,0.1313376]
[1763564956071,0.33007594,92338.0,92325.0,0.1083917]
[1763564956072,0.02274,92337.0,92336.0,0.3608]
[1763564956272,0.04379,92313.0,92312.0,0.3608]
[1763564956580,0.3608,92330.0,92312.0,0.3608]
[1763564956776,0.00016214,92322.0,92321.0,0.5150964]
[1763564956981,0.1083749,92340.0,92321.0,0.82772]
[1763564957184,0.00219803,92340.0,92337.0,0.3608]
[1763564957479,0.00219803,92340.0,92338.0,0.10612]
[1763564957871,0.3608,92348.0,92339.0,0.0459]
[1763564958072,0.00219803,92350.0,92347.0,0.02296]
[1763564958276,0.00219803,92350.0,92345.0,0.3608]
[1763564958576,0.1083636,92349.0,92345.0,0.3608]
[1763564958773,0.11056103,92350.0,92345.0,0.3608]
[1763564959178,0.04379,92346.0,92345.0,0.3608]
[1763564959773,0.1311247,92331.0,92330.0,0.00016245]
[1763564959983,0.3608,92346.0,92330.0,0.00016245]
[1763564960191,0.00219803,92340.0,92339.0,0.0459]
[1763564960872,0.108357,92355.0,92338.0,0.3608]
[1763564961073,0.37471,92360.0,92338.0,0.3608]
[1763564961074,0.00219803,92350.0,92349.0,0.0459]
[1763564961375,0.02493803,92350.0,92346.0,0.3608]
[1763564961570,0.13330043,92350.0,92346.0,0.3608]
[1763564961772,0.02493803,92350.0,92347.0,0.10608]
[1763564962077,0.00219803,92350.0,92347.0,0.10608]
[1763564962575,0.04379,92348.0,92347.0,0.10608]
[1763564962974,0.00219803,92350.0,92338.0,0.3608]
[1763564962975,0.1083753,92339.0,92338.0,0.3608]
[1763564963175,0.1521747,92331.0,92330.0,0.00016245]
[1763564963469,0.1521747,92331.0,92308.0,0.3608]
[1763564963470,0.04379,92309.0,92308.0,0.3608]
[1763564963779,0.1084152,92305.0,92304.0,0.10612]
[1763564963975,0.3608,92338.0,92308.0,0.1084105]
[1763564964178,0.1084029,92316.0,92312.0,0.3608]
[1763564964373,0.00219803,92320.0,92312.0,0.3608]
[1763564964576,0.04435,92313.0,92312.0,0.3608]
[1763564964777,0.1083982,92320.0,92315.0,0.1084028]
[1763564964980,0.11059623,92320.0,92313.0,0.1084059]
[1763564965181,0.1084039,92315.0,92312.0,0.3608]
[1763564965381,0.00016245,92323.0,92319.0,0.04571]
[1763564965589,0.00016245,92323.0,92316.0,0.01266]
[1763564965590,0.00016245,92323.0,92322.0,0.40651]
[1763564965883,0.4691532,92358.0,92350.0,0.1083618]
[1763564966079,0.4691532,92358.0,92352.0,0.10836]
[1763564966270,0.1083573,92355.0,92351.0,0.10608]
[1763564966676,0.3608,92365.0,92356.0,0.01266]
[1763564966879,0.11053773,92370.0,92365.0,0.02239]
[1763564967183,0.11053773,92370.0,92365.0,0.10616]
[1763564967380,0.108343,92367.0,92365.0,0.10616]
[1763564967587,0.1083547,92357.0,92351.0,0.00016245]
[1763564967884,0.1083589,92353.0,92351.0,0.00016245]
[1763564968084,0.00219803,92360.0,92352.0,0.10612]
[1763564968276,0.00219803,92360.0,92355.0,0.1083554]
[1763564968780,0.108356,92356.0,92352.0,0.10836]
[1763564968978,0.108356,92356.0,92353.0,0.10612]
[1763564969376,0.13132,92352.0,92351.0,0.00016245]
[1763564969571,0.15271,92352.0,92351.0,0.00016245]
[1763564969777,0.1527253,92339.0,92338.0,0.3608]
[1763564969987,0.1527253,92339.0,92338.0,0.46692]
[1763564970191,0.1527253,92339.0,92338.0,0.3608]
[1763564970379,0.1527371,92329.0,92318.0,0.3608]
[1763564970580,0.1527488,92319.0,92318.0,0.3608]
[1763564971389,0.02296,92319.0,92318.0,0.3608]
[1763564971781,0.04435,92319.0,92318.0,0.3608]
[1763564971988,0.1083999,92318.0,92315.0,0.10608]
[1763564972179,0.00219803,92320.0,92318.0,0.02188]
[1763564972383,0.00219803,92320.0,92309.0,0.00016245]
[1763564972384,0.00219803,92320.0,92319.0,0.10616]
[1763564972682,0.1083946,92323.0,92309.0,0.00016245]
[1763564972683,0.36096245,92328.0,92327.0,0.1083894]
[1763564972985,0.01349,92334.0,92330.0,0.00219803]
[1763564973188,0.04461,92331.0,92330.0,0.00219803]
[1763564973385,0.04461,92318.0,92313.0,0.4692051]
[1763564973587,0.3608,92331.0,92313.0,0.3608]
[1763564973891,0.0216,92321.0,92320.0,0.11059563]
[1763564974695,0.40541,92331.0,92330.0,0.1083859]
[1763564974889,0.40541,92331.0,92330.0,0.11058393]
[1763564975192,0.40541,92331.0,92330.0,0.00219803]
[1763564975401,0.04461,92323.0,92322.0,0.3608]
[1763564976278,0.04461,92323.0,92304.0,0.469216]
[1763564976279,0.108401,92318.0,92314.0,0.3608]
[1763564976486,0.3608,92331.0,92304.0,0.3608]
[1763564976487,0.04461,92311.0,92310.0,0.00219803]
[1763564976689,0.01349,92312.0,92309.0,0.10857275]
[1763564976690,0.1530194,92310.0,92309.0,0.00016245]
[1763564976886,0.04461,92301.0,92300.0,0.00219803]
[1763564977094,0.04461,92294.0,92293.0,0.3608]
[1763564977893,0.04461,92283.0,92282.0,0.3608]
[1763564978096,0.04461,92281.0,92280.0,0.00219803]
[1763564978581,0.1530534,92281.0,92280.0,0.00219803]
[1763564978781,0.3608,92294.0,92272.0,0.33596254]
[1763564978782,0.1530628,92273.0,92272.0,0.33596254]
[1763564979189,0.04461,92269.0,92254.0,0.10616]
[1763564979394,0.01349,92274.0,92254.0,0.10616]
[1763564979595,0.108463,92265.0,92254.0,0.10616]
[1763564979783,0.0216,92255.0,92251.0,0.3608]
[1763564979990,0.04461,92252.0,92251.0,0.3608]
[1763564980291,0.04461,92251.0,92250.0,0.00236057]
[1763564980491,0.36089387,92252.0,92250.0,0.00236057]
[1763564980791,0.0216,92251.0,92250.0,0.00236057]
[1763564980990,0.36089387,92252.0,92251.0,0.1084787]
[1763564981593,0.04461,92251.0,92250.0,0.00236057]
[1763564981995,0.04461,92251.0,92250.0,0.00016254]
[1763564982194,0.0216,92251.0,92250.0,0.00236057]
[1763564982389,9.387e-05,92252.0,92251.0,0.1297287]
[1763564982589,0.02169387,92252.0,92250.0,0.00236057]
[1763564982795,0.04461,92251.0,92250.0,0.00236057]
[1763564983403,9.387e-05,92252.0,92231.0,0.46696]
[1763564983593,0.3608,92245.0,92240.0,0.00219803]
[1763564984199,0.04461,92241.0,92240.0,0.00219803]
[1763564984595,0.04461,92241.0,92233.0,0.00016254]
[1763564984790,0.04461,92234.0,92233.0,0.00016254]
[1763564985698,0.3608,92236.0,92234.0,0.1084986]
[1763564986990,0.3608,92236.0,92233.0,0.00016254]
[1763564986991,0.04461,92234.0,92233.0,0.00016254]
[1763564987693,0.0216,92230.0,92225.0,0.1085086]
[1763564988187,0.3608,92236.0,92235.0,0.1084975]
[1763564988392,0.04461,92232.0,92231.0,0.1085014]
[1763564988799,0.1531122,92231.0,92230.0,0.00219803]
[1763564989098,0.3608,92236.0,92225.0,0.001]
[1763564989099,0.166608,92226.0,92225.0,0.001]
[1763564989294,0.16672723,92226.0,92225.0,0.001]
[1763564989494,0.52752723,92226.0,92225.0,0.001]
[1763564989890,0.63360723,92226.0,92225.0,0.001]
[1763564990297,0.41901923,92226.0,92225.0,0.001]
[1763564990486,0.41901923,92226.0,92222.0,0.10867494]
[1763564990487,0.02171923,92226.0,92222.0,0.10867494]
[1763564990799,0.00011923,92226.0,92225.0,0.04313]
[1763564991296,0.00011923,92226.0,92225.0,0.001]
[1763564991599,0.04472923,92226.0,92225.0,0.001]
[1763564991802,0.40552923,92226.0,92225.0,0.001]
[1763564991999,0.51403723,92226.0,92225.0,0.001]
[1763564993400,0.40552923,92226.0,92225.0,0.1095092]
[1763564993589,0.00011923,92226.0,92225.0,0.1095092]
[1763564994187,0.04472923,92226.0,92225.0,0.001]
[1763564994797,0.04472923,92226.0,92224.0,0.1085092]
[1763564995298,0.04472923,92226.0,92222.0,0.00016264]
[1763564995601,0.04461,92223.0,92222.0,0.00016264]
[1763564996190,0.1531357,92211.0,92201.0,0.3608]
[1763564996500,0.00011923,92226.0,92225.0,0.1516392]
[1763564996995,0.3608,92245.0,92232.0,0.151631]
[1763564997202,0.3608,92245.0,92244.0,0.1084869]
[1763564997497,0.3608,92256.0,92255.0,0.1084739]
[1763564997796,0.1084739,92255.0,92250.0,0.00219803]
[1763564998001,0.3608,92256.0,92250.0,0.00219803]
[1763564998185,0.1084739,92255.0,92253.0,0.1084758]
[1763564998392,0.3608,92256.0,92253.0,0.1084758]
[1763564998699,0.04461,92251.0,92250.0,0.11067783]
[1763564999096,0.3608,92256.0,92253.0,0.1084752]
[1763564999295,0.4692729,92256.0,92253.0,0.1084752]
[1763564999803,0.4702729,92256.0,92253.0,0.1084752]
[1763564999999,0.3618,92256.0,92250.0,0.00219803]
[1763565000200,0.4702736,92256.0,92251.0,0.1084786]
[1763565000403,0.3608,92256.0,92255.0,0.1084739]
[1763565000600,0.108471,92258.0,92253.0,0.3608]
[1763565000898,0.0581,92245.0,92244.0,0.00016264]
[1763565001090,0.00016264,92262.0,92255.0,0.151604]
[1763565001296,0.3608,92278.0,92277.0,0.1515781]
[1763565001495,0.3608,92278.0,92256.0,0.3608]
[1763565001496,0.04461,92267.0,92266.0,0.3608]
[1763565001692,0.3608,92278.0,92270.0,0.00219803]
[1763565001896,0.3608,92285.0,92270.0,0.00219803]
[1763565002308,0.3608,92275.0,92270.0,0.00219803]
[1763565002510,0.04329,92271.0,92270.0,0.00219803]
[1763565002901,0.3608,92275.0,92271.0,0.1084552]
[1763565003097,0.04329,92271.0,92270.0,0.00219803]
[1763565003292,0.3608,92275.0,92268.0,0.00016255]
[1763565003293,0.04329,92269.0,92268.0,0.00016255]
[1763565003609,0.0138,92264.0,92237.0,0.05710142]
[1763565003797,0.1084787,92251.0,92233.0,0.41790142]
[1763565003998,0.3608,92255.0,92240.0,0.00219803]
[1763565004204,0.04329,92241.0,92240.0,0.00219803]
[1763565004393,0.1085034,92230.0,92226.0,0.05710142]
[1763565004593,0.0138,92245.0,92220.0,0.00219803]
[1763565004594,0.04329,92221.0,92220.0,0.00219803]
[1763565004804,0.1085258,92211.0,92207.0,0.05710142]
[1763565005005,0.1085451,92195.0,92188.0,0.0769008]
[1763565005207,0.1085394,92200.0,92190.0,0.00219803]
[1763565005402,0.3608,92207.0,92190.0,0.11074783]
[1763565005605,0.469331,92207.0,92192.0,0.3608]
[1763565005909,9.524e-05,92206.0,92200.0,0.00219803]
[1763565006102,9.524e-05,92206.0,92201.0,0.1085375]
[1763565007103,0.36089524,92206.0,92205.0,0.1201208]
[1763565007310,0.02226,92198.0,92197.0,0.09761536]
[1763565007508,0.02226,92194.0,92193.0,0.09761536]
[1763565007712,0.3608,92198.0,92190.0,0.00016264]
[1763565007713,0.04329,92191.0,92190.0,0.00016264]
[1763565008207,0.04329,92191.0,92190.0,2.64e-06]
[1763565008398,0.04329,92191.0,92176.0,0.07598668]
[1763565008399,0.1085729,92171.0,92158.0,0.1366615]
[1763565008603,0.40409,92167.0,92160.0,0.13885953]
[1763565008797,0.40409,92167.0,92160.0,0.1016615]
[1763565008798,0.1518746,92161.0,92160.0,0.1016615]
[1763565009007,0.4693846,92161.0,92143.0,0.04475079]
[1763565009508,0.1086153,92135.0,92126.0,0.00027137]
[1763565009708,0.1086359,92118.0,92100.0,0.18393209]
[1763565009905,0.3608,92101.0,92100.0,0.18613012]
[1763565010207,0.3608,92101.0,92100.0,0.01562803]
[1763565010400,0.39001568,92101.0,92100.0,0.01562803]
[1763565010601,0.13537568,92101.0,92100.0,0.05884803]
[1763565011204,0.10627845,92101.0,92100.0,0.01562803]
[1763565011404,0.10627845,92101.0,92082.0,0.3608]
[1763565011616,0.1086671,92091.0,92082.0,0.3608]
[1763565011809,0.3608,92092.0,92090.0,0.00219803]
[1763565012005,0.1062,92091.0,92082.0,0.3608]
[1763565012207,0.1062,92091.0,92060.0,0.01343]
[1763565012208,0.3608,92087.0,92060.0,0.01343]
[1763565012511,0.3608,92087.0,92067.0,0.1086954]
[1763565012814,0.467,92087.0,92067.0,0.1086954]
[1763565013111,0.1086807,92080.0,92065.0,0.1086967]
[1763565013308,0.1086921,92070.0,92060.0,0.01562803]
[1763565013503,0.3608,92061.0,92060.0,0.01562803]
[1763565013711,0.3608,92061.0,92060.0,0.00219803]
[1763565014009,0.1087038,92060.0,92030.0,0.3608]
[1763565014209,0.1087124,92053.0,92030.0,0.3608]
[1763565014509,0.3608,92047.0,92040.0,0.00219803]
[1763565014721,0.46704,92047.0,92044.0,0.1087221]
[1763565015212,0.46711936,92047.0,92044.0,0.1087221]
[1763565015411,0.46711936,92047.0,92030.0,0.3608]
[1763565015714,0.1087216,92045.0,92026.0,0.01343]
[1763565015908,0.3608,92027.0,92026.0,0.01343]
[1763565016313,0.3608,92027.0,92008.0,0.1087651]
[1763565016511,0.36088003,92027.0,92026.0,0.03517]
[1763565016811,0.46612003,92027.0,92026.0,0.01343]
[1763565017109,0.35988003,92027.0,92026.0,0.01343]
[1763565017309,0.35988003,92027.0,92026.0,0.05665]
[1763565017513,0.35988003,92027.0,92010.0,0.3608]
[1763565017809,0.46616003,92027.0,92020.0,0.00219803]
[1763565018311,0.46616003,92027.0,92010.0,0.3608]
[1763565018612,0.3598,92017.0,92011.0,0.1087617]
[1763565019214,0.3598,92017.0,92010.0,0.00219803]
[1763565019413,0.3598,92017.0,92011.0,0.1082617]
[1763565019611,0.3598,92017.0,92016.0,0.04322]
[1763565019819,0.35988003,92027.0,92026.0,0.151964]
[1763565020201,8.003e-05,92027.0,92026.0,0.151964]
[1763565020418,0.00016293,92036.0,92035.0,0.1519533]
[1763565020807,0.00016293,92036.0,92030.0,0.00219803]
[1763565021307,0.00016293,92036.0,92035.0,0.04322]
[1763565021614,0.00025355,92036.0,92035.0,0.04322]
[1763565022317,0.00025355,92036.0,92033.0,0.4695348]
[1763565022514,0.00025355,92036.0,92030.0,0.00219803]
[1763565022515,0.4695333,92035.0,92030.0,0.00219803]
[1763565022714,0.1087427,92027.0,92026.0,0.001]
[1763565022909,0.1087554,92017.0,92010.0,0.3608]
[1763565023106,0.4685554,92017.0,92010.0,0.36299803]
[1763565023301,0.3608,92017.0,92014.0,0.1087577]
[1763565023506,0.3608,92017.0,92010.0,0.36299803]
[1763565023911,0.1087558,92016.0,92010.0,0.36299803]
[1763565024111,0.1087558,92016.0,92010.0,0.36499803]
[1763565024417,0.1087612,92012.0,92010.0,0.36499803]
[1763565024619,0.00010002,92015.0,92010.0,0.36499803]
[1763565024912,0.00010002,92015.0,92011.0,0.1087617]
[1763565025119,0.00010002,92015.0,92014.0,0.0428]
[1763565025317,0.00010002,92015.0,92011.0,0.1087617]
[1763565025318,0.3608,92037.0,92035.0,0.1519433]
[1763565026319,0.00030197,92036.0,92035.0,0.1519433]
[1763565027113,0.00030197,92036.0,92035.0,0.04321]
[1763565027314,0.3608,92048.0,92033.0,0.4695355]
[1763565027315,0.3608,92048.0,92047.0,0.04321]
[1763565027505,0.3608,92058.0,92056.0,0.1087084]
[1763565027712,0.3608,92058.0,92057.0,0.04321]
[1763565028315,0.3608,92090.0,92085.0,0.0132]
[1763565028715,0.15932131,92089.0,92085.0,0.0132]
[1763565029312,0.05065121,92089.0,92086.0,0.1086731]
[1763565029617,0.00016293,92096.0,92095.0,0.02215]
[1763565029818,0.00016293,92096.0,92095.0,0.40401]
[1763565030013,0.00016293,92096.0,92095.0,0.3608]
[1763565030216,0.00016293,92096.0,92090.0,0.00219803]
[1763565030422,0.00016293,92096.0,92095.0,0.40401]
[1763565030717,0.05254349,92107.0,92106.0,0.03535]
[1763565030917,0.05254349,92107.0,92106.0,0.05641]
[1763565031223,0.1086436,92111.0,92110.0,0.00219803]
[1763565032120,0.1086483,92107.0,92103.0,0.3608]
[1763565032416,0.1086436,92111.0,92101.0,0.00016284]
[1763565032417,0.1086542,92102.0,92101.0,0.00016284]
[1763565033017,0.3608,92106.0,92101.0,0.00016284]
[1763565033218,0.1086462,92109.0,92106.0,0.01345]
[1763565033514,0.1086542,92102.0,92101.0,0.00016284]
[1763565034717,0.1086542,92102.0,92078.0,0.3608]
[1763565034718,0.1086719,92087.0,92068.0,0.3608]
[1763565034915,0.108692,92070.0,92068.0,0.3608]
[1763565035511,0.3608,92093.0,92068.0,0.3608]
[1763565035512,0.3608,92093.0,92070.0,0.00219803]
[1763565035713,0.00016284,92091.0,92080.0,0.3608]
[1763565036014,0.00016284,92091.0,92085.0,0.01345]
[1763565036216,0.14043857,92090.0,92085.0,0.01345]
[1763565036415,0.1086707,92088.0,92085.0,0.01345]
[1763565036824,0.108679,92081.0,92080.0,0.00219803]
[1763565037319,0.03187012,92081.0,92080.0,0.00219803]
[1763565037617,0.001,92088.0,92087.0,0.1086719]
[1763565037823,0.001,92088.0,92087.0,0.1545019]
[1763565038422,0.00016284,92091.0,92090.0,0.04802803]
[1763565038610,0.03211892,92091.0,92090.0,0.04802803]
[1763565039018,0.1086731,92086.0,92084.0,0.3608]
[1763565039224,0.03195608,92085.0,92084.0,0.02267]
[1763565039414,0.05809299,92088.0,92087.0,0.02316]
[1763565039614,0.09014782,92088.0,92087.0,0.04583]
[1763565040117,0.1086719,92087.0,92085.0,0.01345]
[1763565040319,0.03205483,92086.0,92085.0,0.01345]
[1763565040921,0.03205483,92086.0,92085.0,0.1221243]
[1763565041122,0.03205483,92086.0,92085.0,0.1679543]
[1763565041523,0.09022457,92086.0,92085.0,0.05928]
[1763565041718,0.03305483,92086.0,92085.0,0.05928]
[1763565042423,0.1086778,92082.0,92081.0,0.3608]
[1763565042617,0.14073263,92082.0,92081.0,0.3608]
[1763565043412,0.1086885,92073.0,92069.0,0.00013948]
[1763565043627,0.14074333,92073.0,92070.0,0.00219803]
[1763565046030,0.10963274,92073.0,92072.0,0.04599284]
[1763565046225,0.03205483,92073.0,92072.0,0.04599284]
[1763565046428,0.03205483,92073.0,92072.0,0.00016284]
[1763565046634,0.10963274,92073.0,92072.0,0.00016284]
[1763565046832,0.03205483,92073.0,92072.0,0.00016284]
[1763565047021,0.11065658,92073.0,92072.0,0.00016284]
[1763565047222,0.03305483,92073.0,92072.0,0.00016284]
[1763565047528,0.11067966,92073.0,92072.0,0.15468244]
[1763565047918,0.03305483,92073.0,92072.0,0.15468244]
[1763565049530,3.83e-06,92076.0,92075.0,0.1545161]
[1763565049734,0.07762483,92086.0,92085.0,0.1545043]
[1763565050031,0.07762483,92090.0,92088.0,0.1313407]
[1763565050227,0.1086665,92092.0,92090.0,0.04583]
[1763565050431,0.1086665,92092.0,92090.0,0.00219803]
[1763565050730,0.04544284,92091.0,92090.0,0.00219803]
[1763565051030,0.04528,92086.0,92085.0,0.3608]
[1763565051231,0.153953,92086.0,92085.0,0.3608]
[1763565051432,0.153953,92086.0,92080.0,0.00219803]
[1763565051433,0.1539589,92081.0,92080.0,0.00219803]
[1763565051622,0.1539648,92076.0,92075.0,0.3608]
[1763565053427,0.1549648,92076.0,92075.0,0.3608]
[1763565053834,0.001,92076.0,92075.0,0.76743]
[1763565054135,0.07776481,92086.0,92082.0,0.02267]
[1763565054334,0.1086692,92090.0,92088.0,0.1086697]
[1763565054536,0.1086692,92090.0,92088.0,0.04996469]
[1763565054728,0.1086731,92087.0,92085.0,0.3608]
[1763565055336,0.108679,92081.0,92080.0,0.11087823]
[1763565055531,0.21001288,92081.0,92080.0,0.00219803]
[1763565055726,0.132119,92081.0,92080.0,0.00219803]
[1763565056638,0.1086767,92083.0,92080.0,0.11087753]
[1763565057032,0.1086767,92083.0,92080.0,0.00219803]
[1763565057234,0.1086767,92083.0,92080.0,0.11087703]
[1763565057432,0.09702517,92086.0,92085.0,0.1086743]
[1763565057737,0.001,92081.0,92080.0,0.02486803]
[1763565058130,0.001,92081.0,92080.0,0.04802803]
[1763565060248,0.001,92081.0,92080.0,0.00219803]
[1763565060730,0.1086785,92082.0,92080.0,0.00219803]
[1763565061341,0.001,92083.0,92082.0,0.04583]
[1763565061930,0.02896508,92083.0,92082.0,0.04583]
[1763565062443,0.00016284,92091.0,92080.0,0.11087703]
[1763565062444,3.92e-06,92091.0,92090.0,0.049]
[1763565062745,0.07799484,92118.0,92117.0,0.049]
[1763565063040,0.1086343,92119.0,92115.0,0.10604]
[1763565063242,0.1086365,92118.0,92115.0,0.10604]
[1763565063435,0.04826,92114.0,92113.0,0.3608]
[1763565063632,0.04826,92114.0,92110.0,0.00219803]
[1763565063633,0.04826,92111.0,92110.0,0.00219803]
[1763565064939,0.1569109,92105.0,92104.0,0.36096284]
[1763565065441,0.07799484,92117.0,92104.0,0.36096284]
[1763565065744,0.04826,92115.0,92114.0,0.3608]
[1763565065942,0.07815768,92123.0,92114.0,0.3608]
[1763565066135,0.07815768,92123.0,92122.0,0.3608]
[1763565066136,0.00016284,92123.0,92122.0,0.3608]
[1763565066337,0.00016284,92123.0,92122.0,0.4098]
[1763565066644,0.1086119,92139.0,92138.0,0.02499]
[1763565066839,0.1323897,92123.0,92122.0,0.3608]
[1763565067139,0.1086203,92131.0,92128.0,0.1086228]
[1763565067346,0.1086203,92131.0,92130.0,0.36299803]
[1763565067842,0.1568803,92131.0,92130.0,0.36299803]
[1763565068440,0.1568803,92131.0,92122.0,0.3608]
[1763565068441,0.1712597,92123.0,92122.0,0.3608]
[1763565068748,0.1086225,92130.0,92124.0,0.049]
[1763565069044,0.00016284,92140.0,92136.0,0.1086138]
[1763565069347,0.1086202,92131.0,92130.0,0.00219803]
[1763565069539,0.1086112,92139.0,92135.0,0.1086155]
[1763565069732,0.00016284,92140.0,92138.0,0.108611]
[1763565069937,0.00016284,92140.0,92139.0,0.049]
[1763565070142,0.07799484,92167.0,92157.0,0.049]
[1763565070143,0.0583006,92167.0,92157.0,0.049]
[1763565070332,0.53582001,92177.0,92163.0,0.3608]
[1763565070333,0.0583006,92172.0,92163.0,0.3608]
[1763565070537,0.1085812,92165.0,92163.0,0.3608]
[1763565070937,0.04826,92164.0,92163.0,0.3608]
[1763565071445,0.00016275,92173.0,92163.0,0.3608]
[1763565071650,0.00016275,92173.0,92172.0,0.4693719]
[1763565071943,0.1085579,92184.0,92175.0,0.1085675]
[1763565072146,0.1085579,92184.0,92180.0,0.00219803]
[1763565072337,0.04826,92181.0,92180.0,0.00219803]
[1763565072542,0.02376,92181.0,92180.0,0.00219803]
[1763565073045,0.04826,92181.0,92180.0,0.00219803]
[1763565073350,0.1085707,92173.0,92172.0,0.38579]
[1763565074143,0.1085707,92173.0,92171.0,0.00016275]
[1763565074343,0.04826,92172.0,92171.0,0.00016275]
[1763565074752,0.04826,92172.0,92153.0,0.3608]
[1763565074753,0.1085931,92154.0,92153.0,0.3608]
[1763565074940,0.1568661,92143.0,92142.0,0.3608]
[1763565075335,0.1568661,92143.0,92140.0,0.00219803]
[1763565075545,0.1568755,92135.0,92130.0,0.00219803]
[1763565075843,0.1568755,92135.0,92114.0,0.3622]
[1763565075844,0.1568991,92115.0,92114.0,0.3622]
[1763565076542,0.00016284,92124.0,92115.0,0.1086391]
[1763565076743,0.1568897,92123.0,92122.0,0.3608]
[1763565076939,0.00016284,92124.0,92122.0,0.3608]
[1763565077342,0.1568897,92123.0,92122.0,0.3608]
[1763565077547,0.00016284,92124.0,92122.0,0.4694301]
[1763565077745,0.1086297,92123.0,92122.0,0.3608]
[1763565077939,0.1568897,92123.0,92122.0,0.3608]
[1763565078555,0.00016284,92124.0,92123.0,0.02499]
[1763565078848,0.00016284,92124.0,92123.0,0.1576297]
[1763565079037,8.983e-05,92135.0,92134.0,0.1336067]
[1763565079243,0.10870533,92135.0,92134.0,0.38579]
[1763565079446,0.10870533,92135.0,92134.0,0.3608]
[1763565079657,8.983e-05,92135.0,92134.0,0.3608]
[1763565080348,0.04834983,92135.0,92134.0,0.3608]
[1763565080944,8.983e-05,92135.0,92134.0,0.3608]
[1763565081153,8.983e-05,92135.0,92134.0,0.4098]
[1763565081750,8.983e-05,92135.0,92134.0,0.3608]
[1763565081949,8.983e-05,92135.0,92134.0,0.38579]
[1763565082344,8.983e-05,92135.0,92134.0,0.3608]
[1763565082540,0.02384983,92135.0,92134.0,0.3608]
[1763565082755,8.983e-05,92135.0,92134.0,0.3608]
[1763565083562,8.983e-05,92135.0,92134.0,0.4098]
[1763565083859,0.1085811,92165.0,92160.0,0.1085854]
[1763565084155,0.1085747,92170.0,92163.0,0.3608]
[1763565084456,0.02662092,92169.0,92166.0,0.02229]
[1763565084657,0.3608,92183.0,92163.0,0.3608]
[1763565084658,0.1085661,92177.0,92163.0,0.3608]
[1763565084843,0.3608,92183.0,92163.0,0.3608]
[1763565084844,0.04539,92164.0,92163.0,0.3608]
[1763565085243,0.00010775,92178.0,92163.0,0.3608]
[1763565085547,0.15937422,92175.0,92174.0,0.3608]
[1763565085743,0.18275422,92175.0,92174.0,0.3608]
[1763565085948,0.1319531,92171.0,92170.0,0.00219803]
[1763565086141,0.1539631,92171.0,92170.0,0.00219803]
[1763565086956,0.1539713,92164.0,92163.0,0.3608]
[1763565087648,0.04539,92164.0,92163.0,0.3608]
[1763565087951,0.02338,92164.0,92163.0,0.3608]
[1763565088146,0.1085802,92165.0,92163.0,0.3608]
[1763565088350,0.001,92171.0,92170.0,0.02229]
[1763565088548,0.001,92171.0,92170.0,0.02448803]
[1763565088845,0.05080582,92175.0,92170.0,0.00219803]
[1763565089044,0.05080582,92175.0,92174.0,0.5148296]
[1763565089250,0.00010775,92178.0,92177.0,0.154026]
[1763565089551,0.00010775,92178.0,92177.0,0.514826]
[1763565090159,0.1085613,92182.0,92180.0,0.00219803]
[1763565091255,0.11051006,92205.0,92180.0,0.00219803]
[1763565091549,0.04539,92193.0,92182.0,0.00016275]